fUSD/lending_fUSD_20250818
["ID","MTS","AMOUNT","RATE_DAILY","PERIOD"]
[380054870,1755511842915,-1000.0,0.00012435,2]
[380054872,1755511842924,-610.7,0.00012514,2]
[380054873,1755511842934,-150.0,0.00012552,2]
[380054875,1755511842943,-1000.0,0.00012612,2]
[380054876,1755511842953,-2000.0,0.00012616,2]
[380054877,1755511842962,-2000.0,0.00012616,2]
[380054878,1755511842971,-2000.0,0.00012616,2]
[380054879,1755511842980,-212.00699823,0.00012637,2]
[380054880,1755511842990,-160.0,0.00012637,2]
[380054881,1755511843000,-458.40919931,0.00012637,2]
[380054882,1755511843010,-843.78711038,0.00012637,2]
[380054883,1755511843020,-338.12,0.00012641,2]
[380054884,1755511843029,-3914.14877357,0.00012641,2]
[380054885,1755511843039,-1000.0,0.00012646,2]
[380054886,1755511843048,-150.0,0.0001265,2]
[380054887,1755511843057,-21105.69,0.000127,2]
[380054888,1755511843067,-2000.0,0.00012716,2]
[380054889,1755511843077,-152.73399958,0.00012724,2]
[380054890,1755511843086,-590.0,0.0001273,2]
[380054891,1755511843096,-150.0,0.00012733,2]
[380054892,1755511843105,-150.0,0.00012734,2]
[380054893,1755511843115,-1000.0,0.00012765,2]
[380054894,1755511843124,-150.0,0.00012804,2]
[380054895,1755511843134,-150.0,0.00012853,2]
[380054896,1755511843144,-150.0,0.00012891,2]
[380054897,1755511843154,-666.0,0.00012892,2]
[380054898,1755511843163,-666.0,0.00012892,2]
[380054899,1755511843173,-1047.81838246,0.00012917,2]
[380054900,1755511843183,-151.0,0.00012949,2]
[380054901,1755511843192,-456.46403188,0.00012959,2]
[380054902,1755511843201,-1000.0,0.0001296,2]
[380054903,1755511843211,-1000.0,0.00012996,2]
[380054904,1755511843222,-1000.0,0.00012996,2]
[380054905,1755511843237,-1000.0,0.00013009,2]
[380054906,1755511843248,-1000.0,0.00013014,2]
[380054907,1755511843258,-1000.0,0.00013059,2]
[380054908,1755511843267,-156.58,0.00013065,2]
[380054909,1755511843278,-666.0,0.00013085,2]
[380054910,1755511843288,-666.0,0.00013085,2]
[380054911,1755511843297,-666.0,0.00013086,2]
[380054912,1755511843307,-424.31958871,0.00013086,2]
[380054913,1755511843317,-61380.67254214,0.00013086,2]
[380054914,1755511843326,-1076.433567,0.00013086,2]
[380054915,1755511843341,-969.851097,0.00013086,2]
[380054916,1755511843351,-1076.433567,0.00013086,2]
[380054917,1755511843362,-151.0,0.00013086,2]
[380054918,1755511843372,-969.851097,0.00013086,2]
[380054919,1755511843382,-299.733859,0.00013086,2]
[380054920,1755511843392,-3837.63596,0.00013086,2]
[380054921,1755511843403,-1040.808,0.00013086,2]
[380054922,1755511843413,-299.733859,0.00013086,2]
[380054923,1755511843422,-3837.63596,0.00013086,2]
[380054924,1755511843431,-1040.808,0.00013086,2]
[380054925,1755511843441,-549.047952,0.00013086,2]
[380054926,1755511843451,-151.0,0.00013086,2]
[380054927,1755511843461,-1187.902856,0.00013086,2]
[380054928,1755511843471,-549.047952,0.00013086,2]
[380054929,1755511843480,-1187.902856,0.00013086,2]
[380054930,1755511843490,-658.424717,0.00013086,2]
[380054931,1755511843500,-441.397182,0.00013086,2]
[380054932,1755511843510,-658.424717,0.00013086,2]
[380054933,1755511843520,-441.397182,0.00013086,2]
[380054935,1755511843530,-151.0,0.00013086,2]
[380054936,1755511843540,-151.0,0.00013086,2]
[380054937,1755511843550,-151.0,0.00013086,2]
[380054938,1755511843560,-155.377265,0.00013086,2]
[380054939,1755511843570,-2727.610331,0.00013086,2]
[380054940,1755511843581,-1936.223628,0.00013086,2]
[380054941,1755511843591,-151.0,0.00013086,2]
[380054942,1755511843602,-155.377265,0.00013086,2]
[380054943,1755511843612,-2727.610331,0.00013086,2]
[380054944,1755511843622,-1936.223628,0.00013086,2]
[380054945,1755511843634,-151.0,0.00013086,2]
[380054948,1755511844059,-151.0,0.00013086,2]
[380054949,1755511844069,-390.482322,0.00013086,2]
[380054950,1755511844079,-2439.133594,0.00013086,2]
[380054951,1755511844088,-390.482322,0.00013086,2]
[380054952,1755511844098,-151.0,0.00013086,2]
[380054953,1755511844113,-151.0,0.00013086,2]
[380054954,1755511844123,-2439.133594,0.00013086,2]
[380054955,1755511844134,-202.845991,0.00013086,2]
[380054956,1755511844144,-342.581616,0.00013086,2]
[380054957,1755511844154,-151.0,0.00013086,2]
[380054958,1755511844164,-1916.956587,0.00013086,2]
[380054959,1755511844174,-892166.27145127,0.00013087,2]
[380054960,1755511845335,-2720.44031215,0.00013087,2]
[380054961,1755511845346,-1114.55008,0.00013087,2]
[380054962,1755511845404,151.0,0.00024,120]
[380054963,1755511845434,-2074.55749776,0.00013087,2]
[380054964,1755511845451,-3110.01716113,0.00013087,2]
[380054965,1755511845462,-2048.003565,0.00013087,2]
[380054966,1755511845474,-3158.92017496,0.00013087,2]
[380054967,1755511845488,-1633.4695283,0.00013087,2]
[380054972,1755511846484,151.0,0.00024,120]
[380055000,1755511846867,-202.845991,0.00011099,2]
[380055001,1755511846876,-407.021309,0.00013087,2]
[380055002,1755511846914,-22362.95002239,0.00013087,2]
[380055003,1755511846996,154.0,0.00024,120]
[380055004,1755511847592,-5.42229341,0.00011099,2]
[380055005,1755511847604,-2530.13331259,0.00011099,2]
[380055006,1755511847613,-202.845991,0.00013086,2]
[380055007,1755511847623,-5280.9098782,0.00013087,2]
[380055008,1755511847688,-1365.70369105,0.00013087,2]
[380055009,1755511847731,-2880.25,0.00013087,2]
[380055010,1755511849547,-342.581616,0.00011099,2]
[380055011,1755511849557,-1916.956587,0.00011099,2]
[380055012,1755511849568,-44.061797,0.00011099,2]
[380055013,1755511849849,-354.484613,0.00011099,2]
[380055014,1755511849859,-871.21538702,0.00013086,2]
[380055015,1755511852262,-230.49114042,9.664e-05,2]
[380055016,1755511852271,-287.50885958,0.00011099,2]
[380055017,1755511853747,151.0,0.00024,120]
[380055018,1755511854367,151.0,0.00024,120]
[380055019,1755511854759,184.43816916,0.00024,120]
[380055020,1755511860581,151.0,0.00024,120]
[380055021,1755511862790,151.0,0.00024,120]
[380055022,1755511865086,151.0,0.00024,120]
[380055023,1755511865684,151.0,0.00024,120]
[380055024,1755511866728,151.0,0.00024,120]
[380055025,1755511868106,151.0,0.00024,120]
[380055026,1755511870685,151.0,0.00024,120]
[380055027,1755511871584,151.0,0.00024,120]
[380055028,1755511872162,151.0,0.00024,120]
[380055029,1755511872731,151.0,0.00024,120]
[380055030,1755511873328,151.0,0.00024,120]
[380055031,1755511873894,151.0,0.00024,120]
[380055032,1755511874739,151.0,0.00024,120]
[380055033,1755511875673,151.0,0.00024,120]
[380055034,1755511876092,151.0,0.00024,120]
[380055035,1755511876552,151.0,0.00024,120]
[380055036,1755511877143,151.0,0.00024,120]
[380055037,1755511877697,151.0,0.00024,120]
[380055038,1755511882928,151.0,0.00024,120]
[380055039,1755511883528,151.0,0.00024,120]
[380055040,1755511884122,151.0,0.00024,120]
[380055041,1755511885175,151.0,0.00024,120]
[380055042,1755511885445,151.0,0.00024,120]
[380055043,1755511886038,151.0,0.00024,120]
[380055044,1755511886671,151.0,0.00024,120]
[380055045,1755511887354,151.0,0.00024,120]
[380055046,1755511913343,-500.0,9.664e-05,2]
[380055047,1755511913375,-500.0,9.664e-05,2]
[380055048,1755511913402,-500.0,9.664e-05,2]
[380055049,1755511913433,-609.25394124,9.664e-05,2]
[380055050,1755511913463,-223.5948,0.00010799,2]
[380055051,1755511913492,-173.2494873,0.000109,2]
[380055052,1755511913521,-300.0,0.00010999,2]
[380055053,1755511913549,-1200.0,0.00010999,2]
[380055054,1755511914080,-14350.75356531,0.00011,2]
[380055055,1755511958141,3590.0,0.00024,120]
[380055057,1755512021942,203.57154875,0.00024,120]
[380055066,1755512298180,-1354.2478,0.00010869,2]
[380055067,1755512298202,-300.0,0.00010897,2]
[380055068,1755512298225,-156.40697379,0.00010924,2]
[380055069,1755512298248,-300.0,0.00010963,2]
[380055070,1755512298271,-150.0,0.00010999,2]
[380055071,1755512298294,-200.0,0.00011,2]
[380055072,1755512298318,-300.0,0.00011024,2]
[380055073,1755512298342,-400.0,0.00011097,2]
[380055074,1755512298368,-300.0,0.00011097,2]
[380055075,1755512298391,-300.0,0.00011098,2]
[380055076,1755512298413,-1200.0,0.00011098,2]
[380055077,1755512298436,-300.0,0.00011098,2]
[380055078,1755512298458,-150.0,0.00011098,2]
[380055079,1755512298479,-151.0,0.00011099,2]
[380055080,1755512298501,-398.54641,0.00011099,2]
[380055081,1755512298524,-151.0,0.00011099,2]
[380055082,1755512298545,-151.0,0.00011099,2]
[380055083,1755512298568,-151.0,0.00011099,2]
[380055084,1755512298590,-151.0,0.00011099,2]
[380055085,1755512298613,-151.0,0.00011099,2]
[380055086,1755512298637,-537.673854,0.00011099,2]
[380055087,1755512298661,-537.673854,0.00011099,2]
[380055088,1755512298708,-365.631881,0.00011099,2]
[380055089,1755512298854,-151.0,0.00011099,2]
[380055090,1755512299414,-365.631881,0.00011099,2]
[380055091,1755512299437,-151.0,0.00011099,2]
[380055092,1755512299458,-175.070775,0.00011099,2]
[380055093,1755512299479,-284.204185,0.00011099,2]
[380055094,1755512299499,-175.070775,0.00011099,2]
[380055095,1755512299520,-284.204185,0.00011099,2]
[380055096,1755512299541,-1000.0,0.00011313,2]
[380055097,1755512299563,-169.06,0.00011363,2]
[380055098,1755512299587,-150.0,0.00011367,2]
[380055099,1755512299611,-170.0,0.00011379,7]
[380055100,1755512299640,-2722.50452312,0.00011687,2]
[380055101,1755512299667,-150.0,0.000118,2]
[380055102,1755512299693,-300.0,0.00011956,2]
[380055103,1755512299718,-200.0,0.00012,2]
[380055104,1755512299746,-155.36,0.00012013,2]
[380055105,1755512299774,-155.36,0.00012024,2]
[380055106,1755512299801,-155.36,0.00012035,2]
[380055107,1755512299836,-155.36,0.00012046,2]
[380055108,1755512299867,-300.0,0.00012057,2]
[380055109,1755512299894,-500.0,0.00012057,2]
[380055110,1755512299920,-151.0,0.00012057,2]
[380055111,1755512299947,-500.0,0.00012057,2]
[380055112,1755512299972,-500.0,0.00012057,2]
[380055113,1755512299998,-500.0,0.00012057,2]
[380055114,1755512300022,-500.0,0.00012057,2]
[380055115,1755512300046,-500.0,0.00012057,2]
[380055116,1755512300075,-500.0,0.00012057,2]
[380055117,1755512300100,-160.0,0.00012057,2]
[380055118,1755512300123,-314.6524053,0.00012057,2]
[380055119,1755512300145,-500.0,0.00012057,2]
[380055120,1755512300167,-277.35679052,0.00012057,2]
[380055121,1755512300189,-721.12765535,0.00012057,2]
[380055122,1755512300211,-3000.0,0.00012057,2]
[380055123,1755512300233,-3000.0,0.00012057,2]
[380055124,1755512300254,-3000.0,0.00012057,2]
[380055125,1755512300276,-3000.0,0.00012057,2]
[380055126,1755512300298,-3000.0,0.00012057,2]
[380055127,1755512300323,-3000.0,0.00012057,2]
[380055128,1755512300345,-3000.0,0.00012057,2]
[380055129,1755512300371,-3000.0,0.00012057,2]
[380055130,1755512300395,-3000.0,0.00012057,2]
[380055131,1755512300417,-3000.0,0.00012057,2]
[380055132,1755512300439,-3000.0,0.00012057,2]
[380055133,1755512300462,-155.36,0.00012057,2]
[380055134,1755512300485,-43954.34,0.00012064,2]
[380055135,1755512300507,-155.36,0.00012068,2]
[380055136,1755512300531,-155.36,0.00012079,2]
[380055137,1755512300554,-155.36,0.0001209,2]
[380055138,1755512300580,-300.0,0.00012099,2]
[380055139,1755512300605,-155.36,0.00012101,2]
[380055140,1755512300629,-500.0,0.00012112,2]
[380055141,1755512300651,-155.36,0.00012112,2]
[380055142,1755512300676,-155.36,0.00012123,2]
[380055143,1755512300699,-8.63605192,0.00012134,2]
[380055144,1755512355003,150.0,0.00013425,120]
[380055145,1755512399690,-1317.52,0.00010999,2]
[380055146,1755512399714,-1317.52,0.00011547,2]
[380055147,1755512399737,-2751.0,0.00011713,2]
[380055148,1755512399759,-1317.52,0.00012095,2]
[380055149,1755512399783,-146.72394808,0.00012134,2]
[380055150,1755512399804,-151.0,0.00012134,2]
[380055151,1755512399830,-201.09549266,0.00012134,2]
[380055152,1755512399853,-255.0,0.00012152,2]
[380055153,1755512399877,-500.0,0.00012167,2]
[380055154,1755512399900,-250.0,0.00012194,2]
[380055155,1755512399923,-300.0,0.00012197,2]
[380055156,1755512399946,-4137.037,0.00012198,2]
[380055157,1755512399968,-275.563,0.00012198,2]
[380055158,1755512399988,-1567.0,0.00012198,2]
[380055159,1755512400009,-500.0,0.00012198,2]
[380055160,1755512400031,-438.0,0.00012198,2]
[380055161,1755512400055,-150.0,0.00012198,2]
[380055162,1755512400079,-150.0,0.00012198,2]
[380055163,1755512400101,-150.0,0.00012198,2]
[380055164,1755512400123,-151.32747545,0.00012198,2]
[380055165,1755512400145,-500.0,0.00012198,2]
[380055166,1755512400167,-500.0,0.00012198,2]
[380055167,1755512400189,-150.0,0.00012198,2]
[380055168,1755512400210,-678.0,0.00012198,2]
[380055169,1755512400233,-637.0,0.00012198,2]
[380055170,1755512400706,-1680.0,0.00012208,2]
[380055171,1755512400739,-500.0,0.00012222,2]
[380055172,1755512400760,-499.99,0.00012222,2]
[380055173,1755512400781,-527.79811006,0.00012277,2]
[380055174,1755512400808,-539.0,0.0001228,2]
[380055175,1755512400829,-521.96,0.00012338,2]
[380055176,1755512400851,-408.15,0.00012338,2]
[380055177,1755512400872,-9999.99,0.00012338,2]
[380055178,1755512400893,-1325.79,0.00012338,2]
[380055179,1755512400918,-1861.38,0.00012338,2]
[380055180,1755512400949,-999.99,0.00012338,2]
[380055181,1755512400972,-150.99,0.00012338,2]
[380055182,1755512400995,-1255.0,0.00012397,2]
[380055183,1755512401018,-3371.0,0.00012397,2]
[380055184,1755512401043,-904.0,0.00012397,2]
[380055185,1755512401065,-2883.65497375,0.00012397,2]
[380055196,1755512716575,2192.93073632,0.000121,30]
[380055197,1755512733583,175.72572261,0.0002,120]
[380055203,1755512823435,1000.0,0.00024,120]
[380055204,1755512835006,1000.0,0.00024,120]
[380055205,1755512840834,1000.0,0.00024,120]
[380055206,1755512900764,16766.09486478,0.00012,30]
[380055207,1755512900789,20086.65855946,0.00012,30]
[380055208,1755512924616,2619.0,0.00024,120]
[380055209,1755512939118,743.0,0.00024,120]
[380055291,1755512989831,230.0,0.00024,120]
[380055292,1755512992366,170.0,0.00010908,7]
[380055401,1755513033939,-0.64546561,0.00010744,2]
[380055402,1755513033975,-249.35453439,0.00010744,2]
[380055403,1755513033985,-211.55118171,0.00010899,2]
[380055404,1755513033994,-328.67733058,0.000109,2]
[380055405,1755513034004,-393.27141813,0.000109,2]
[380055406,1755513034016,-473.64619519,0.000109,2]
[380055407,1755513034026,-156.40081631,0.000109,2]
[380055408,1755513034035,-62.9393036,0.0001095,2]
[380055409,1755513034047,-237.0606964,0.0001095,2]
[380055410,1755513034056,-500.0,0.00010973,2]
[380055411,1755513034066,-500.0,0.00010973,2]
[380055412,1755513034076,-500.0,0.00010973,2]
[380055413,1755513034085,-303.55957022,0.00010973,2]
[380055414,1755513034198,-196.44042978,0.00010973,2]
[380055415,1755513034208,-500.0,0.00010973,2]
[380055416,1755513034218,-300.0,0.00010987,2]
[380055417,1755513034227,-1200.0,0.00010993,2]
[380055418,1755513034236,-1000.0,0.00010994,2]
[380055419,1755513034246,-300.0,0.00010999,2]
[380055420,1755513034256,-300.0,0.00010999,2]
[380055421,1755513034266,-150.0,0.00010999,2]
[380055422,1755513034275,-300.0,0.00010999,2]
[380055423,1755513034285,-298504.35769907,0.00011,2]
[380055424,1755513034298,-66846.83483188,0.00011,2]
[380055425,1755513034403,-3559.2,0.00011,2]
[380055426,1755513034416,-2973.22672103,0.00011,2]
[380055427,1755513034462,-529.24915692,0.00011,2]
[380055430,1755513038292,-11437254.15960775,0.00011,2]
[380055431,1755513038302,-19670.61,0.00011,2]
[380055432,1755513038311,-6738717.69596455,0.00011,2]
[380055433,1755513038323,-985.35848,0.00011,2]
[380055467,1755513040447,-757.0588662,0.00011,2]
[380055468,1755513040500,-1616.97981138,0.00011,2]
[380055469,1755513040553,-3459.0,0.00011,2]
[380055543,1755513043834,-874.89936121,0.00011,2]
[380055549,1755513046128,-3129.7,0.00011,2]
[380055550,1755513046139,-4994.7001234,0.00011,2]
[380055551,1755513046150,-4967.00001,0.00011,2]
[380055552,1755513046161,-2561.17665116,0.00011,2]
[380055553,1755513046228,-1070.70000001,0.00011,2]
[380055559,1755513096778,622.0,0.00024,120]
[380055561,1755513176577,392.0,0.00024,120]
[380055612,1755513243685,392.0,0.00024,120]
[380055634,1755513288620,-1572.45894298,0.00015,30]
[380055635,1755513324212,-300.0,0.00010377,2]
[380055636,1755513327194,197.0,0.00024,120]
[380055637,1755513333358,-173.2494873,0.00010377,2]
[380055638,1755513338718,-62.6642873,0.00010377,2]
[380055639,1755513338814,-98.2662254,0.00010377,2]
[380055640,1755513338824,-62.6642873,0.00010459,2]
[380055650,1755513637621,-1137.3357127,0.00010324,2]
[380055651,1755513654632,150.0,0.00013425,120]
[380055655,1755513878018,-300.0,0.0001007,2]
[380055656,1755513885012,-173.2494873,0.0001007,2]
[380055657,1755513906922,-1137.3357127,0.00010024,2]
[380055658,1755513990396,170.0,9.986e-05,7]
[380055672,1755514046788,197.83667719,0.00024,120]
[380055743,1755514172347,-250.0,9.919e-05,2]
[380055744,1755514172379,-159.18,9.977e-05,2]
[380055745,1755514172407,-427.0,0.0001,2]
[380055746,1755514172434,-862.6642873,0.00010024,2]
[380055747,1755514172462,-300.0,0.00010047,2]
[380055748,1755514172489,-526.7505127,0.0001007,2]
[380055749,1755514172516,-1000.0,0.0001026,2]
[380055750,1755514172543,-300.0,0.0001027,2]
[380055751,1755514172570,-191.0,0.000103,2]
[380055752,1755514172600,-191.0,0.000103,2]
[380055753,1755514172626,-337.7842873,0.00010324,2]
[380055754,1755514172652,-300.0,0.00010325,2]
[380055755,1755514173062,-4659.99539071,0.00010325,2]
[380055769,1755514233887,-1200.0,0.00010324,2]
[380055770,1755514233898,-300.0,0.00010324,2]
[380055771,1755514233908,-299.99,0.00010324,2]
[380055772,1755514233917,-300.0,0.00010325,2]
[380055773,1755514233927,-3057.68218897,0.00010325,2]
[380055796,1755514236092,-2684.84600209,0.00010325,2]
[380055798,1755514236103,-6685.23784032,0.00010325,2]
[380055806,1755514236163,-1000.0,0.00010325,2]
[380055828,1755514236377,-343.33,0.00010325,2]
[380055978,1755514238421,-1392.31037715,0.00010325,2]
[380055979,1755514238433,-2632.01999999,0.00010325,2]
[380055980,1755514238444,-670.3099998,0.00010325,2]
[380055981,1755514238489,-3850.11393246,0.00010325,2]
[380055982,1755514238500,-1323.77172205,0.00010325,2]
[380055983,1755514238533,-3239.59254646,0.00010325,2]
[380055984,1755514238543,-614.6057127,0.00010459,2]
[380055985,1755514238552,-300.0,0.00010482,2]
[380055986,1755514238561,-1000.0,0.00010629,2]
[380055987,1755514238571,-161.03,0.00010675,2]
[380055988,1755514238580,-798.63,0.000107,2]
[380055989,1755514238591,-1200.0,0.00010897,2]
[380055990,1755514238601,-3739.563,0.00010899,2]
[380055991,1755514238612,-220.451,0.00010899,2]
[380055992,1755514238621,-150.0,0.00010899,2]
[380055993,1755514238630,-896.69,0.00010899,2]
[380055994,1755514238640,-9837.82,0.00010899,2]
[380055995,1755514238651,-3951.8303,0.000109,2]
[380055996,1755514238662,-937.24,0.000109,2]
[380055997,1755514238672,-2157.2114,0.000109,2]
[380055998,1755514238681,-1684.47,0.000109,2]
[380055999,1755514238691,-223.5948,0.000109,2]
[380056000,1755514238700,-2500.0,0.000109,2]
[380056001,1755514238709,-150.0,0.00010959,2]
[380056002,1755514238718,-500.0,0.00010973,2]
[380056003,1755514238727,-160.32236936,0.00010993,2]
[380056004,1755514238736,-2000.0,0.00010999,2]
[380056005,1755514238745,-2003.2084664,0.00010999,2]
[380056006,1755514238754,-500.0,0.00011,2]
[380056007,1755514238764,-8680674.45278222,0.00011,2]
[380056008,1755514238774,-418738.21,0.00011,2]
[380056009,1755514238783,-19670.61,0.00011,2]
[380056010,1755514238792,-151.0,0.00011,2]
[380056011,1755514238802,-191.0,0.00011,2]
[380056012,1755514238811,-191.0,0.00011,3]
[380056013,1755514238821,-193.01,0.00011,3]
[380056014,1755514238830,-819368.3811541,0.00011,2]
[380056015,1755514238840,-250.0,0.00011027,2]
[380056016,1755514238850,-300.0,0.00011027,2]
[380056017,1755514238863,-146947.33,0.00011071,2]
[380056018,1755514238872,-500.0,0.00011073,2]
[380056019,1755514238882,-500.0,0.00011073,2]
[380056020,1755514238891,-500.0,0.00011073,2]
[380056021,1755514238901,-500.0,0.00011073,2]
[380056022,1755514238911,-500.0,0.00011073,2]
[380056023,1755514238920,-500.0,0.00011073,2]
[380056024,1755514238929,-150.0,0.00011088,2]
[380056025,1755514238939,-790.34950417,0.00011088,2]
[380056026,1755514238949,-1007.30819159,0.00011088,2]
[380056027,1755514238959,-1224.26687901,0.00011088,2]
[380056028,1755514238968,-1441.22556643,0.00011088,2]
[380056029,1755514238977,-1658.18425385,0.00011088,2]
[380056030,1755514238988,-1875.14294127,0.00011089,2]
[380056031,1755514238997,-2092.10162868,0.00011089,2]
[380056032,1755514239008,-2309.0603161,0.00011089,2]
[380056034,1755514239018,-2526.01900352,0.00011089,2]
[380056036,1755514239028,-460576.77426177,0.00011099,2]
[380056050,1755514239037,-155.82,0.00011155,2]
[380056051,1755514239371,-155.82,0.00011267,2]
[380056052,1755514239381,-1000.0,0.00011329,2]
[380056053,1755514239391,-1680.0,0.00011356,2]
[380056054,1755514239400,-300.0,0.00011357,2]
[380056055,1755514239410,-2751.0,0.00011507,2]
[380056056,1755514239419,-1000.0,0.00011521,2]
[380056057,1755514239428,-2813.4254,0.0001156,2]
[380056058,1755514239438,-1000.0,0.00011594,2]
[380056059,1755514239447,-4959.0,0.00011596,2]
[380056060,1755514239457,-67036.87739986,0.00011602,2]
[380056061,1755514239466,-1000.0,0.00011621,2]
[380056062,1755514239476,-1000.0,0.00011621,2]
[380056063,1755514239485,-1000.0,0.00011621,2]
[380056064,1755514239494,-1000.0,0.00011621,2]
[380056065,1755514239503,-1000.0,0.00011621,2]
[380056066,1755514239512,-1000.0,0.00011621,2]
[380056067,1755514239522,-2813.42541,0.0001169,2]
[380056068,1755514239531,-677.27,0.00011767,2]
[380056069,1755514239540,-170.9,0.00011775,2]
[380056070,1755514239550,-1596.98,0.00011778,2]
[380056071,1755514239559,-4923.41751996,0.00011801,2]
[380056072,1755514239569,-2813.42541,0.0001181,2]
[380056073,1755514239578,-300.0,0.00011853,2]
[380056074,1755514239587,-3000.0,0.00011853,2]
[380056075,1755514239596,-721.12765535,0.00011853,2]
[380056076,1755514239605,-151.0,0.00011853,2]
[380056077,1755514239615,-246.39601672,0.00011853,2]
[380056078,1755514239624,-548.36854937,0.00011853,2]
[380056079,1755514239633,-160.0,0.00011853,2]
[380056080,1755514239642,-277.35679052,0.00011853,2]
[380056081,1755514239651,-254.70039417,0.00011853,2]
[380056082,1755514239661,-155.64884187,0.00011853,2]
[380056083,1755514239670,-3000.0,0.00011853,2]
[380056084,1755514239681,-3000.0,0.00011853,2]
[380056085,1755514239691,-3000.0,0.00011853,2]
[380056086,1755514239700,-3000.0,0.00011853,2]
[380056087,1755514239710,-3000.0,0.00011853,2]
[380056088,1755514239719,-3000.0,0.00011853,2]
[380056089,1755514239728,-3000.0,0.00011853,2]
[380056090,1755514239738,-3025.96109029,0.00011853,2]
[380056091,1755514239747,-500.0,0.00011853,2]
[380056092,1755514239757,-500.0,0.00011853,2]
[380056093,1755514239768,-500.0,0.00011853,2]
[380056094,1755514239777,-500.0,0.00011853,2]
[380056095,1755514239787,-500.0,0.00011853,2]
[380056096,1755514239796,-500.0,0.00011853,2]
[380056097,1755514239806,-500.0,0.00011853,2]
[380056098,1755514239815,-500.0,0.00011853,2]
[380056099,1755514239824,-500.0,0.00011853,2]
[380056100,1755514239834,-500.0,0.00011853,2]
[380056101,1755514239843,-500.0,0.00011853,2]
[380056102,1755514239852,-2813.4254,0.0001194,2]
[380056103,1755514239865,-255.0,0.00011945,2]
[380056104,1755514239874,-200.0,0.00012,2]
[380056105,1755514239883,-278.79942072,0.00012024,2]
[380056106,1755514239892,-798.63,0.00012035,2]
[380056107,1755514239903,-2214.78,0.00012055,2]
[380056108,1755514239912,-1041.4358324,0.00012068,2]
[380056109,1755514239922,-173.45,0.00012069,2]
[380056110,1755514239932,-2813.42541,0.0001207,2]
[380056111,1755514239941,-839.79371059,0.00012139,2]
[380056112,1755514239951,-438.37625615,0.00012168,2]
[380056113,1755514239960,-1500.0,0.00012168,2]
[380056114,1755514239969,-1500.0,0.00012168,2]
[380056115,1755514239979,-1003.43822729,0.00012168,2]
[380056116,1755514239989,-1500.0,0.00012168,2]
[380056117,1755514239998,-1500.0,0.00012168,2]
[380056118,1755514240008,-2813.42541,0.0001219,2]
[380056119,1755514240018,-150.0,0.00012198,2]
[380056120,1755514240027,-191.10917246,0.00012198,2]
[380056121,1755514240036,-150.0,0.00012198,2]
[380056122,1755514240046,-500.0,0.00012198,2]
[380056123,1755514240055,-150.0,0.00012198,2]
[380056124,1755514240064,-1501.0,0.00012198,2]
[380056125,1755514240073,-500.0,0.00012198,2]
[380056126,1755514240083,-420.0,0.00012198,2]
[380056127,1755514240092,-258.31843497,0.00012198,2]
[380056128,1755514240102,-150.0,0.00012198,2]
[380056129,1755514240112,-150.0,0.00012198,2]
[380056130,1755514240123,-500.0,0.00012198,2]
[380056131,1755514240132,-150.0,0.00012198,2]